Cogmind - Beta 17 @@@ ROGUE MODE // 2026.07.22 @ 16:08:17 Player: teag2 Result: Destroyed by G-50 Soldier with Heavy Laser Performance ------------- Evolutions (5) 2500 Regions Visited (12) 2400 Robots Destroyed (152) 760 Value Destroyed (5372) 5372 Prototype IDs (42) 840 Alien Tech Used (0) 0 Bonus (853) 853 TOTAL SCORE: 12725 Bonus ------- High Alert Combat Kills 297 Follower Combat Kills 256 Met Data Miner 300 Cogmind --------- Core Integrity 0/1000 Matter 111/300 Energy 456/500 System Corruption 16% Temperature Hot (249) Movement Hovering (56) Location -5/Extension Parts ------- > --- POWER (2) -------- Micro Fission Core > --- PROPULSION (4) --- Antigrav System Antigrav System > --- UTILITY (8) ------ Improved Heat Sink Energy Well Improved Sensor Array Improved Signal Interpreter Insulated Plating Improved Hacking Suite System Shield > --- WEAPON (3) ------- Variable Charge Gun > --- INVENTORY (5) ---- Carbon-fiber Leg Large Storage Unit Focal Shield Advanced Shield Generator Improved Plasma Cutter Peak State ------------ > --- POWER ------------ Fission Core > --- PROPULSION ------- Hovering Gravjet-Carbon Exoskeleton > --- UTILITY ---------- Armored Scrap Engine Large Storage Unit Advanced Sensor Array Improved Signal Interpreter Improved Medium Armor Plating Improved System Shield > --- WEAPON ----------- Energy Plasma Construct/C Thermal Plasma Construct/C Flak Ballistic Hardcell Construct/C > --- INVENTORY -------- Light Nuclear Core Light Angular Momentum Engine Improved Medium Treads Cryofiber Web Improved Heat Sink Large Matter Pod Advanced Sensor Array Advanced Targeting Computer Hacking Suite Hacking Suite Improved Hacking Suite System Restoration Module Heavy Plasma Cannon Assault Cannon Grenade Launcher [Rating: 78] Favorites ----------- Power Improved Ion Engine Engine Improved Ion Engine Power Core Light Nuclear Core Propulsion Light Treads Treads Light Treads Leg Carbon-fiber Leg Hover Unit Constructs Flight Unit Improved VTOL Module Utility Improved Signal Interpreter Device Armored Scrap Engine Storage Large Storage Unit Processor Improved Signal Interpreter Hackware Improved System Shield Protection Light Armor Plating Weapon Enhanced Autogun Energy Gun Medium Laser Energy Cannon Heavy Plasma Cannon Ballistic Gun Enhanced Autogun Ballistic Cannon Constructs Launcher Grenade Launcher Special Weapon Enhanced Flamer Build | -11 -10 -10 -8 -8 -8 -6 -6 -6 -6 -5 -5 -5 ------- Run | Yrd Mat Sub Mat Sto Rec Fac Low Low Dat Pro Fac Ext Slots Evolved 10 | . . . 4 . . 4 . . . . 2 . Power 1 | . . . . . . . . . . . 1 . Propulsion 2 | . . . 2 . . . . . . . . . Utility 6 | . . . 2 . . 3 . . . . 1 . Weapon 1 | . . . . . . 1 . . . . . . Parts Attached 116 | 6 6 2 27 23 5 12 4 3 . 5 23 . Power 15 | 1 1 . 2 2 2 2 . . . 1 4 . Engine 10 | 1 1 . 2 2 2 . . . . . 2 . Core 5 | . . . . . . 2 . . . 1 2 . Reactor . | . . . . . . . . . . . . . Propulsion 30 | 2 . . 8 12 1 . 2 . . 3 2 . Treads 19 | 2 . . 5 11 . . 1 . . . . . Leg 7 | . . . 3 . . . 1 . . 3 . . Wheel . | . . . . . . . . . . . . . Hover 2 | . . . . . . . . . . . 2 . Flight 2 | . . . . 1 1 . . . . . . . Utility 44 | 1 3 1 8 5 1 7 1 2 . 1 14 . Device 15 | . 1 . 3 . 1 3 1 2 . 1 3 . Storage 6 | 1 2 1 . . . . . . . . 2 . Processor 4 | . . . 3 . . . . . . . 1 . Hackware 6 | . . . . . . 1 . . . . 5 . Protection 13 | . . . 2 5 . 3 . . . . 3 . Artifact . | . . . . . . . . . . . . . Weapon 27 | 2 2 1 9 4 1 3 1 1 . . 3 . Energy Gun 8 | 1 . . 1 1 1 3 . . . . 1 . Energy Cannon 3 | . . 1 1 . . . 1 . . . . . Ballistic Gun 11 | 1 2 . 6 2 . . . . . . . . Ballistic Cannon 1 | . . . . 1 . . . . . . . . Launcher 2 | . . . 1 . . . . . . . 1 . Special Weapon 2 | . . . . . . . . 1 . . 1 . Impact Weapon . | . . . . . . . . . . . . . Slashing Weapon . | . . . . . . . . . . . . . Piercing Weapon . | . . . . . . . . . . . . . Special Melee Weapon . | . . . . . . . . . . . . . Unidentified Prototypes 11 | . . . 5 2 2 2 . . . . . . Parts Lost 49 | . . . 8 6 . 10 4 1 . 2 18 . Power 8 | . . . 1 1 . 1 1 . . 1 3 . Propulsion 15 | . . . 5 2 . 4 . . . . 4 . Utility 17 | . . . 1 1 . 3 1 1 . 1 9 . Weapon 9 | . . . 1 2 . 2 2 . . . 2 . Highest Loss Streak 13 | . . . 4 3 . 7 4 1 . 1 13 . To Critical Strikes . | . . . . . . . . . . . . . Average Backups 14 | 1 9 15 21 23 21 12 7 7 7 8 8 5 Power 1 | . 3 3 3 1 1 1 . . . . . . Propulsion 2 | . . 1 . 7 6 1 . . . . . 1 Utility 6 | . 1 3 7 7 7 7 6 7 7 7 5 3 Weapon 4 | . 4 7 10 7 6 2 . . . . . . Tool/Special . | . . . . . . . . . . . . . Unused Backups 33 | . 1 . 5 12 7 3 . . . . 4 1 Power 1 | . 1 . . . . . . . . . . . Propulsion 16 | . . . . 9 5 2 . . . . . . Utility 6 | . . . 1 2 . . . . . . 3 . Weapon 8 | . . . 4 1 2 1 . . . . . . Tool/Special 2 | . . . . . . . . . . . 1 1 Average Slot Usage (%) 82 | . 98 100 86 98 87 67 63 73 79 79 64 64 Engine 6 | . 14 14 7 9 8 3 1 . . . 1 . Core 1 | . . . . . . 2 4 6 6 5 2 5 Treads 16 | . 28 28 21 34 25 . 6 6 3 . . . Leg 3 | . . . 6 . . . 4 6 7 13 9 . Flight 1 | . . . . . 4 4 . . . . . . Device 13 | . 12 14 6 9 8 13 21 24 26 25 14 11 Storage 8 | . 14 14 9 9 9 6 6 6 6 6 3 5 Processor 6 | . . . 9 9 9 6 6 6 6 6 4 5 Hackware 1 | . . . . . . 5 . . . . 7 11 Protection 4 | . . . 7 8 5 5 . . . . 2 5 Energy Cannon 2 | . . . . . . 4 7 6 6 6 1 . Ballistic Gun 10 | . 23 27 17 17 11 . . . . 3 2 . Ballistic Cannon 1 | . . . . . 3 2 2 5 6 2 . . Peak Build Rating 78 | 6 12 14 29 32 47 78 57 61 60 67 78 51 Average Rating 40 | 4 9 13 24 29 34 63 52 57 59 62 55 51 On Entrance 35 | . 6 12 14 29 31 46 36 52 60 60 67 51 Avg Prop Armor Cover (%) 6 | . . . 8 8 . . 6 5 5 . 4 . Naked Turns . | . . . . . . . . . . . . . Heaviest Build 102 | 12 34 94 98 99 102 62 49 44 43 44 52 20 Greatest Support 115 | 40 40 40 60 80 80 115 30 30 37 67 67 22 Greatest Overweight (x) 9 | . . 2 4 2 2 9 1 1 1 1 1 . Average Overweight (x) . | . . . 1 1 . . 1 1 1 . . . Largest Inventory Capacity 25 | 8 15 25 25 25 25 15 15 15 15 15 15 5 Average Capacity 18 | 6 13 20 25 25 23 15 15 15 15 15 11 5 Most Carried 25 | 4 15 17 25 25 25 15 13 8 8 12 14 5 Average Carried 15 | 1 9 15 22 24 21 12 7 7 7 8 8 5 Final Capacity 25 | 8 15 25 25 25 15 15 15 15 15 15 5 5 Final Carried 25 | 1 14 17 25 25 15 14 6 7 7 9 5 5 Scrap Engine Consumption 86 | . . . . . 20 41 3 3 1 6 12 . Constructs Created 11 | . . . . . 3 5 . 1 1 . 1 . Constructs Modified 18 | . . . . . 3 9 . . . 1 5 . Transmogrified Parts 1 | . . . 1 . . . . . . . . . Integrity Recovered 7 | . . . 7 . . . . . . . . . Class Distribution -------------------- 41% | Mutant 18% | Scavenger-Mutant 10% | Commander-Skirmisher 9% | Commander-Construct 6% | Construct 5% | Commander-Mutant 4% | Scavenger-Skirmisher 3% | Hacker-Mutant Dominant Class ---------------- Mutant | -10/Materials Mutant | -10/Subcaves Mutant | -8/Materials Scavenger-Mutant | -8/Storage Commander-Mutant | -8/Recycling Construct | -6/Factory Mutant | -6/Lower Caves Mutant | -6/Lower Caves Commander-Skirmisher | -6/Data Miner Commander-Skirmisher | -5/Proximity Caves Scavenger-Skirmisher | -5/Factory Hacker-Mutant | -5/Extension Resources | -11 -10 -10 -8 -8 -8 -6 -6 -6 -6 -5 -5 -5 ----------- Run | Yrd Mat Sub Mat Sto Rec Fac Low Low Dat Pro Fac Ext Matter Collected 4656 | 248 374 28 1387 1510 308 449 99 54 . 115 84 . Remotely . | . . . . . . . . . . . . . Salvage Created 6399 | . 432 48 1547 2124 242 1134 236 56 . 189 324 67 Parts 304 | . 35 4 86 114 5 32 7 2 . 4 14 1 Haulers Intercepted 9 | . 1 . 2 5 . . . . . . 1 . Recyclers Shooed 8 | . 1 . 2 2 . 1 . . . . 2 . Parts Field Recycled . | . . . . . . . . . . . . . Retrieved Matter . | . . . . . . . . . . . . . Parts Self-Destructed 27 | . . 7 . . . . 6 3 . 11 . . Prevented 2 | . . . . . . . 2 . . . . . Parts Restored . | . . . . . . . . . . . . . Kills | -11 -10 -10 -8 -8 -8 -6 -6 -6 -6 -5 -5 -5 ------- Run | Yrd Mat Sub Mat Sto Rec Fac Low Low Dat Pro Fac Ext Combat Hostiles Destroyed 114 | . 13 3 29 32 5 20 5 1 . 4 1 1 Guns 82 | . 13 3 27 32 3 3 . . . . . 1 Cannons 14 | . . . . . 2 6 2 1 . 3 . . AOE 9 | . . . 2 . . 4 2 . . . 1 . Classes Destroyed 16 | . 6 . 2 4 1 2 . 1 . . . . Worker 8 | . 1 . 2 2 . 1 . . . . 2 . Builder 5 | . . . . 1 1 1 . . . . 2 . Hauler 9 | . 1 . 2 5 . . . . . . 1 . Recycler 4 | . . . . 1 . 2 . . . . 1 . Mechanic 1 | . . . . 1 . . . . . . . . Operator 4 | . 1 . 1 2 . . . . . . . . Watcher 7 | . 3 . 2 1 . 1 . . . . . . Swarmer 21 | . 9 3 4 . . 4 . . . 1 . . Grunt 47 | . 4 . 17 16 . 5 4 . . . . 1 Brawler 2 | . . . . 1 . . . . . 1 . . Duelist 1 | . . . 1 . . . . . . . . . Sentry 26 | . . . 7 15 . 3 . . . 1 . . Hunter 6 | . . . . . . 4 1 . . 1 . . Programmer 5 | . . . . . . 4 . . . . 1 . Subdweller 5 | . . . . . 5 . . . . . . . Mutant 1 | . . . . . . . . 1 . . . . Best Kill Streak 5 | . 4 3 4 5 1 5 4 1 . 1 3 1 Combat Bots Only 5 | . 4 3 4 5 1 4 4 1 . 1 1 1 Max Kills in Single Turn 2 | . 2 2 2 1 1 1 1 1 . 1 1 1 Gunslinging 1 | . . 1 . . . . . . . . . . Exploded 2 | . . . 2 . . 1 1 . . . 1 . Melee . | . . . . . . . . . . . . . Uniques/NPCs Destroyed . | . . . . . . . . . . . . . Combat | -11 -10 -10 -8 -8 -8 -6 -6 -6 -6 -5 -5 -5 -------- Run | Yrd Mat Sub Mat Sto Rec Fac Low Low Dat Pro Fac Ext Hostile Shots Fired 924 | . 42 11 130 140 13 312 46 30 . 46 146 8 Missed 327 | . 9 2 34 38 4 130 18 14 . 17 59 2 Hits 597 | . 33 9 96 102 9 182 28 16 . 29 87 6 Melee 6 | . . . 2 3 . 1 . . . . . . Projectile 591 | . 33 9 94 99 9 181 28 16 . 29 87 6 AOE 6 | . . . . . . . . . . . 6 . Critical Strikes 34 | . 1 . 5 8 . 7 2 . . 1 10 . Part Disruptions 4 | . . . . . . 1 2 . . . 1 . Damage Taken 10288 | . 282 76 1418 1596 209 3123 602 126 . 494 2251 111 Core 1990 | . 55 26 183 165 19 344 136 11 . 41 954 56 Absorbed by Shields 56 | . . . . . 10 46 . . . . . . Regen/Repaired (Parts) 846 | . . . 26 . . 669 . . . . 151 . Core Remaining (%) 59 | 100 . 67 . . 33 . . . . 37 . . Volleys Fired 520 | . 40 6 115 164 28 81 26 4 . 17 32 7 Largest 3 | . 2 2 2 2 2 3 2 2 . 3 3 1 Hottest 211 | . 70 68 68 68 62 210 151 131 . 211 202 75 Shots Fired 937 | . 80 11 226 311 45 145 29 8 . 41 34 7 Gun 717 | . 80 10 219 306 31 47 . . . 13 4 7 Cannon 191 | . . 1 1 5 14 92 27 8 . 20 23 . Launcher 20 | . . . 6 . . 6 2 . . . 6 . Special 9 | . . . . . . . . . . 8 1 . Kinetic 706 | . 61 10 219 308 43 42 . 3 . 15 5 . Thermal 194 | . 19 1 1 3 2 80 27 5 . 26 23 7 Explosive 14 | . . . 6 . . 6 2 . . . . . Electromagnetic 23 | . . . . . . 17 . . . . 6 . Robot Hit Streak 32 | . 6 7 32 16 12 19 5 7 . 7 9 5 Robot Miss Streak 10 | . 10 4 6 4 2 5 1 1 . 3 4 1 Penetration Max . | . . . . . . . . . . . . . Secondary Targets 9 | . 1 1 5 2 . . . . . . . . Max Gunslinging Chain 1 | . 1 1 1 1 . . . . . . . . Shots Hit Robots 594 | . 34 5 148 209 29 94 14 5 . 25 26 5 Core Hits 292 | . 22 3 67 79 10 64 8 4 . 17 17 1 Critical Kills 4 | . 1 . 1 2 . . . . . . . . Critical Parts Destroyed 1 | . . . . 1 . . . . . . . . Critical Strikes 9 | . 2 . 1 3 . 3 . . . . . . Burn 2 | . 1 . . . . 1 . . . . . . Destroy 5 | . 1 . 1 3 . . . . . . . . Blast 2 | . . . . . . 2 . . . . . . Melee Attacks . | . . . . . . . . . . . . . Impact . | . . . . . . . . . . . . . Slashing . | . . . . . . . . . . . . . Piercing . | . . . . . . . . . . . . . Sneak Attacks . | . . . . . . . . . . . . . Combat Hostiles . | . . . . . . . . . . . . . Follow-up Attacks . | . . . . . . . . . . . . . Damage Inflicted 12628 | . 513 79 2852 3724 535 2836 551 129 . 455 825 129 Guns 8069 | . 503 79 2455 3631 410 718 . . . 124 20 129 Cannons 3057 | . . . . . 125 1523 408 129 . 265 607 . Explosions 1286 | . . . 362 . . 595 143 . . . 186 . Melee . | . . . . . . . . . . . . . Ramming 138 | . 10 . 35 93 . . . . . . . . Kinetic 8051 | . 393 79 2455 3631 507 700 . 67 . 138 81 . Thermal 3311 | . 110 . 79 . 28 1620 408 62 . 317 558 129 Explosive 667 | . . . 283 . . 241 143 . . . . . Electromagnetic 461 | . . . . . . 275 . . . . 186 . Impact . | . . . . . . . . . . . . . Slashing . | . . . . . . . . . . . . . Piercing . | . . . . . . . . . . . . . Highest Corruption 16 | . . . . . . . . 1 1 1 16 16 Average Corruption 3 | . . . . . . . . 1 1 1 13 16 Corruption Purged . | . . . . . . . . . . . . . Corruption Blocked . | . . . . . . . . . . . . . Effects 36 | . . . . . . . . 5 3 7 19 2 Message Errors 8 | . . . . . . . . 2 . 1 4 1 Matter Fused 9 | . . . . . . . . 1 . 1 6 1 Heat Flow Errors 2 | . . . . . . . . . 1 1 . . Energy Discharges 3 | . . . . . . . . . 1 2 . . Data Loss (minor) 3 | . . . . . . . . 1 . . 2 . Data Loss (major) 2 | . . . . . . . . . 1 1 . . Misfires 2 | . . . . . . . . 1 . 1 . . Alerts 3 | . . . . . . . . . . . 3 . Misdirections 4 | . . . . . . . . . . . 4 . Overload Shots . | . . . . . . . . . . . . . Overflow Damage 109 | . . . 1 . . 43 13 . . . 52 . Projectiles 95 | . . . . . . 30 13 . . . 52 . Explosions 14 | . . . 1 . . 13 . . . . . . Melee . | . . . . . . . . . . . . . Knockbacks 8 | . . . . 3 1 3 . . . . 1 . Impact 3 | . . . . 3 . . . . . . . . Kinetic 5 | . . . . . 1 3 . . . . 1 . Secondary . | . . . . . . . . . . . . . Self-Inflicted Damage 40 | . . . . . . . 40 . . . . . Shots 2 | . . . . . . . 2 . . . . . Rammed 11 | . 2 . 3 5 . 1 . . . . . . Targets Rammed 12 | . 2 . 3 6 . 1 . . . . . . Kicked . | . . . . . . . . . . . . . Crushed 1 | . . . . 1 . . . . . . . . Highest Temperature 348 | . 30 . 118 181 48 348 206 . . 193 73 240 Average Temperature 44 | . 15 . 20 36 17 79 78 . . 107 25 129 Received Heat Transfer 2548 | . 36 . 738 864 40 363 219 42 . 90 102 54 Siege Activations . | . . . . . . . . . . . . . Martial Activations . | . . . . . . . . . . . . . Shielding Activations . | . . . . . . . . . . . . . Robots Disrupted 1 | . . . . . . . . . . 1 . . Combat Hostiles 1 | . . . . . . . . . . 1 . . Robots Corrupted . | . . . . . . . . . . . . . Combat Hostiles . | . . . . . . . . . . . . . Parts Fried 2 | . . . . . . . . . . . 2 . Impact Corruptions . | . . . . . . . . . . . . . Robots Melted 10 | . . . . . . 8 1 . . 1 . . Combat Hostiles 9 | . . . . . . 7 1 . . 1 . . Parts Melted 29 | . 1 . . . 2 24 1 . . . . 1 Heat Transferred 9155 | . 407 . 50 . 296 5657 650 100 . 880 930 185 Parts Sabotaged . | . . . . . . . . . . . . . Parts Stolen . | . . . . . . . . . . . . . Parts Stripped . | . . . . . . . . . . . . . Power Chain Reactions 1 | . . . . . . 1 . . . . . . Alert | -11 -10 -10 -8 -8 -8 -6 -6 -6 -6 -5 -5 -5 ------- Run | Yrd Mat Sub Mat Sto Rec Fac Low Low Dat Pro Fac Ext Maximum Alert Level 2 | . . . 1 2 1 2 . . . . . . Low Security (%) 55 | 100 100 . 45 29 92 . . . . . 100 100 Level 1 22 | . . . 54 27 7 29 . . . . . . Level 2 21 | . . . . 43 . 70 . . . . . . Level 3 . | . . . . . . . . . . . . . Level 4 . | . . . . . . . . . . . . . Level 5 . | . . . . . . . . . . . . . High Security . | . . . . . . . . . . . . . Max Security . | . . . . . . . . . . . . . Peak Influence 688 | . 127 . 385 560 262 688 . . . . 73 22 Initial 356 | . . . . 130 214 356 . . . . 73 . Average 209 | . 47 . 218 337 55 455 . . . . 10 4 Influence Increases 4912 | . 433 70 1006 1104 232 1437 165 27 . 290 126 22 Destroy 0b10 Robot/C 2320 | . 260 60 580 640 20 400 100 20 . 200 20 20 Destroy 0b10 Robot/NC 185 | . 30 . 35 65 5 20 . . . . 30 . Destroy Leader 572 | . 58 10 138 192 . 112 20 . . 30 12 . Allied During Kill 89 | . . . . . 3 19 . 7 . 60 . . Successful Hack 119 | . 22 . 59 19 7 12 . . . . . . Select Force Hacks 270 | . 30 . 30 30 180 . . . . . . . Disable Machine 330 | . . . 45 30 15 225 . . . . 15 . Destroy Structure 107 | . 3 . 29 8 2 59 . . . . 4 2 Advance Influence 350 | . . . . . . 350 . . . . . . Partial Spotted 45 | . . . . 30 . 15 . . . . . . Lose Combat Pursuer 525 | . 30 . 90 90 . 225 45 . . . 45 . Influence Decreases 4890 | . 432 71 696 862 769 793 653 198 . 173 243 . Entered New Map 851 | . . 1 . 180 338 9 245 34 . . 44 . Time Decay 3472 | . 432 70 596 622 371 574 368 164 . 93 182 . Lost Part 317 | . . . 80 60 . 100 40 . . 20 17 . Lost Ally 250 | . . . 20 . 60 110 . . . 60 . . Squads Dispatched 29 | . 2 . 4 8 . 10 . . . . 5 . Investigation 7 | . 1 . 3 1 . 1 . . . . 1 . Extermination 6 | . . . . . . 4 . . . . 2 . Reinforcement 9 | . 1 . 1 2 . 3 . . . . 2 . Assault 2 | . . . . 2 . . . . . . . . Garrison 5 | . . . . 3 . 2 . . . . . . Intercept . | . . . . . . . . . . . . . Searches Triggered . | . . . . . . . . . . . . . Construction Impeded 1 | . . . . . . . . . . . 1 . Haulers Reinforced . | . . . . . . . . . . . . . Active Scanning Responses . | . . . . . . . . . . . . . Cargo Convoy Interrupts 1 | . . . . . . 1 . . . . . . Stealth | -11 -10 -10 -8 -8 -8 -6 -6 -6 -6 -5 -5 -5 --------- Run | Yrd Mat Sub Mat Sto Rec Fac Low Low Dat Pro Fac Ext Distress Signals 12 | . 1 . 6 4 . 1 . . . . . . Communications Jammed . | . . . . . . . . . . . . . Distress Signals . | . . . . . . . . . . . . . Times Spotted 212 | . 22 3 46 51 7 49 7 2 . 10 12 3 Peak Tracking Total 7 | . 3 3 7 6 2 7 4 1 . 4 4 3 Tactical Retreats 24 | . 2 . 3 5 2 9 1 . . . 2 . Traps | -11 -10 -10 -8 -8 -8 -6 -6 -6 -6 -5 -5 -5 ------- Run | Yrd Mat Sub Mat Sto Rec Fac Low Low Dat Pro Fac Ext Traps Triggered 1 | . . . 1 . . . . . . . . . Indirectly . | . . . . . . . . . . . . . Trap Hack Attempts . | . . . . . . . . . . . . . Triggered . | . . . . . . . . . . . . . Disarmed . | . . . . . . . . . . . . . Reprogrammed . | . . . . . . . . . . . . . Reused . | . . . . . . . . . . . . . Traps Extracted . | . . . . . . . . . . . . . Installed . | . . . . . . . . . . . . . Triggered . | . . . . . . . . . . . . . Machines | -11 -10 -10 -8 -8 -8 -6 -6 -6 -6 -5 -5 -5 ---------- Run | Yrd Mat Sub Mat Sto Rec Fac Low Low Dat Pro Fac Ext Machines Disabled 25 | . . 1 3 2 1 15 . 1 . 1 1 . Max in Single Turn 8 | . . 1 1 1 1 8 . 1 . 1 1 . Garrison Access 3 | . . . . 1 . 1 . . . . 1 . Machines Repaired . | . . . . . . . . . . . . . Machines Dismantled . | . . . . . . . . . . . . . Machines Sabotaged . | . . . . . . . . . . . . . Overloaded Fab Kills . | . . . . . . . . . . . . . Hacking | -11 -10 -10 -8 -8 -8 -6 -6 -6 -6 -5 -5 -5 --------- Run | Yrd Mat Sub Mat Sto Rec Fac Low Low Dat Pro Fac Ext Machines Accessed 56 | . 7 1 11 10 13 3 . . 4 2 5 . Terminals 30 | . 6 . 7 8 5 . . . . 1 3 . Fabricators . | . . . . . . . . . . . . . Repair Stations 1 | . . . 1 . . . . . . . . . Recycling Units 11 | . 1 . 1 1 7 . . . . . 1 . Scanalyzers 3 | . . . 2 . . 1 . . . . . . Garrison Access 4 | . . . . 1 . 2 . . . . 1 . Total Hacks 171 | . 24 5 31 17 38 6 . . 32 2 16 . Successful 116 | . 15 5 20 11 22 3 . . 32 2 6 . Failed 55 | . 9 . 11 6 16 3 . . . . 10 . Catastrophic 5 | . 1 . . . 1 1 . . . . 2 . Database Lockouts . | . . . . . . . . . . . . . Manual 74 | . 18 . 19 13 20 . . . . . 4 . Terminals 72 | . 20 . 18 14 10 . . . . 1 9 . Fabricators . | . . . . . . . . . . . . . Repair Stations 3 | . . . 3 . . . . . . . . . Recycling Units 40 | . 4 . 4 2 26 . . . . . 4 . Scanalyzers 10 | . . . 6 . . 4 . . . . . . Garrison Access 6 | . . . . 1 . 2 . . . . 3 . Terminal Hacks 53 | . 4 5 3 2 3 . . . 32 2 2 . Record 17 | . . 4 . . . . . . 11 2 . . Part Schematic 17 | . 2 . 1 . 1 . . . 13 . . . Robot Schematic 5 | . . . . . . . . . 5 . . . Prototype ID Bank 3 | . . . . . . . . . 3 . . . Open Door 2 | . . . . 2 . . . . . . . . Branch Access Points 1 | . . . 1 . . . . . . . . . Terminal Index 3 | . 1 . 1 . . . . . . . 1 . Locate Traps 1 | . 1 . . . . . . . . . . . Recall Extermination 1 | . . . . . . . . . . . 1 . Proto ID Catalog 1 | . . 1 . . . . . . . . . . Release Object 2 | . . . . . 2 . . . . . . . Fabricator Hacks . | . . . . . . . . . . . . . Repair Station Hacks 2 | . . . 2 . . . . . . . . . Scan Component 1 | . . . 1 . . . . . . . . . Repair 1 | . . . 1 . . . . . . . . . Recycling Unit Hacks 13 | . 2 . 1 1 7 . . . . . 2 . Report Inventory 11 | . 1 . 1 1 7 . . . . . 1 . Retrieve Components 2 | . 1 . . . . . . . . . 1 . Scanalyzer 6 | . . . 4 . . 2 . . . . . . Retrieve Study 6 | . . . 4 . . 2 . . . . . . Garrison Access Hacks 3 | . . . . 1 . 1 . . . . 1 . Seal Access 3 | . . . . 1 . 1 . . . . 1 . Unauthorized Hacks 39 | . 9 . 10 7 12 . . . . . 1 . Terminals 30 | . 8 . 9 6 6 . . . . . 1 . Assimilate 4 | . 1 . 2 . . . . . . . 1 . Botnet 4 | . 1 . 1 1 1 . . . . . . . Operators 2 | . 1 . 1 . . . . . . . . . Skim 20 | . 5 . 5 5 5 . . . . . . . Fabricators . | . . . . . . . . . . . . . Repair Stations . | . . . . . . . . . . . . . Recycling Units 9 | . 1 . 1 1 6 . . . . . . . Tunnel 9 | . 1 . 1 1 6 . . . . . . . Scanalyzers . | . . . . . . . . . . . . . Garrison Access . | . . . . . . . . . . . . . Data Cores Recovered . | . . . . . . . . . . . . . Used . | . . . . . . . . . . . . . Hacking Detections 28 | . 6 . 7 4 5 1 . . . 1 4 . Full Trace Events 4 | . . . 2 . 1 . . . . . 1 . Feedback Events . | . . . . . . . . . . . . . Feedback Blocked . | . . . . . . . . . . . . . Robot Schematics Acquired 5 | . . . . . . . . . 5 . . . Robots Built . | . . . . . . . . . . . . . Authchips . | . . . . . . . . . . . . . Time . | . . . . . . . . . . . . . Total Robot Build Rating . | . . . . . . . . . . . . . Part Schematics Acquired 17 | . 2 . 1 . 1 . . . 13 . . . Parts Built . | . . . . . . . . . . . . . Authchips . | . . . . . . . . . . . . . Time . | . . . . . . . . . . . . . Total Part Build Rating . | . . . . . . . . . . . . . Part Studies Acquired 6 | . . . 4 . . 2 . . . . . . Parts Repaired 1 | . . . 1 . . . . . . . . . Time 26 | . . . 26 . . . . . . . . . Parts Recycled . | . . . . . . . . . . . . . Recycled Matter . | . . . . . . . . . . . . . Retrieved Matter . | . . . . . . . . . . . . . Retrieved Components 19 | . 9 . . . . . . . . . 10 . Parts Scanalyzed . | . . . . . . . . . . . . . Part Schematics Acquired . | . . . . . . . . . . . . . Parts Damaged . | . . . . . . . . . . . . . Bothacking | -11 -10 -10 -8 -8 -8 -6 -6 -6 -6 -5 -5 -5 ------------ Run | Yrd Mat Sub Mat Sto Rec Fac Low Low Dat Pro Fac Ext Used RIF Installer . | . . . . . . . . . . . . . Robots Hacked . | . . . . . . . . . . . . . Non-combat . | . . . . . . . . . . . . . Combat . | . . . . . . . . . . . . . Robot Hacks Applied . | . . . . . . . . . . . . . Relay Couplers Released . | . . . . . . . . . . . . . Fabnet Peak Effective % . | . . . . . . . . . . . . . Robots Rewired 16 | . . . . . 11 . . 4 . . . 1 Allies Hacked 1 | . . . . . . 1 . . . . . . Hacks Repelled . | . . . . . . . . . . . . . Allies | -11 -10 -10 -8 -8 -8 -6 -6 -6 -6 -5 -5 -5 -------- Run | Yrd Mat Sub Mat Sto Rec Fac Low Low Dat Pro Fac Ext Total Allies 21 | . 1 . 1 2 11 . . 4 . . 1 1 Largest Group 10 | . 1 1 1 2 10 10 . 4 4 4 1 2 Highest-Rated Group 141 | . 10 10 10 62 141 141 . 116 116 116 10 41 Highest-Rated Ally 31 | . 10 10 10 31 31 27 . 29 29 29 10 31 Total Orders 1 | . . . . . . 1 . . . . . . STAY 1 | . . . . . . 1 . . . . . . Ally Attacks 69 | . . . . . 11 5 . 6 . 44 . 3 Total Damage 1012 | . . . . . 159 81 . 113 . 618 . 41 Kills 9 | . . . . . 1 . . 1 . 7 . . Allies Corrupted . | . . . . . . . . . . . . . Allies Melted . | . . . . . . . . . . . . . Intel | -11 -10 -10 -8 -8 -8 -6 -6 -6 -6 -5 -5 -5 ------- Run | Yrd Mat Sub Mat Sto Rec Fac Low Low Dat Pro Fac Ext Active Infowar (turns) 10059 | . . . 1189 2113 1207 1489 852 1265 243 921 748 32 Sensors 10059 | . . . 1189 2113 1207 1489 852 1265 243 921 748 32 Robot Analysis Total . | . . . . . . . . . . . . . Derelict Logs Recovered 1 | . . . . . . . . 1 . . . . Drone Launches . | . . . . . . . . . . . . . Drone Recoveries . | . . . . . . . . . . . . . Exploration | -11 -10 -10 -8 -8 -8 -6 -6 -6 -6 -5 -5 -5 ------------- Run | Yrd Mat Sub Mat Sto Rec Fac Low Low Dat Pro Fac Ext Turns Passed 14073 | 85 1206 637 1900 2113 1882 1748 853 1265 243 1071 1038 32 Spaces Moved 6676 | 54 616 271 667 735 992 1151 325 477 93 446 817 32 Core 496 | 12 . . . . . 1 . . . . 483 . Treads 3773 | 42 616 271 667 735 487 89 325 477 64 . . . Legs 667 | . . . . . . . . . 29 446 192 . Wheels . | . . . . . . . . . . . . . Hover 562 | . . . . . . 388 . . . . 142 32 Flight 1178 | . . . . . 505 673 . . . . . . Fastest Speed 42 | 50 160 160 200 200 42 42 240 240 203 124 50 56 Average Speed 160 | 135 160 227 226 200 120 106 240 240 228 191 73 56 Slowest Speed 500 | 160 160 320 320 240 306 500 240 240 240 203 190 56 Overloaded Moves . | . . . . . . . . . . . . . Propulsion Burnouts . | . . . . . . . . . . . . . Robots Hopped 16 | . . . . . 2 14 . . . . . . Potential Cave-ins 8 | . . . . . . . 8 . . . . . Cave-ins Triggered . | . . . . . . . . . . . . . Exploration Rate (%) 45 | 3 82 16 42 85 78 25 47 62 73 55 18 9 Regions Visited 12 Branch Regions 8 Pre-discovered Areas 14 | . 2 . 1 3 7 . . . 1 . . . Known Exits Taken 10 | . 1 . 1 1 1 1 1 1 1 1 1 . Unknown Exits Taken 2 | 1 . 1 . . . . . . . . . . Scrap Searched 2 | . . . . . . . . 2 . . . . Spaces Dug 14 | . . . . 1 2 1 9 . . . 1 . Terrain Destroyed 122 | . . . 22 1 2 56 27 2 . 9 2 1 Melee . | . . . . . . . . . . . . . Projectile 35 | . . . . 1 2 6 12 2 . 9 2 1 AOE 87 | . . . 22 . . 50 15 . . . . . Terrain Rammed . | . . . . . . . . . . . . . Walls Destroyed . | . . . . . . . . . . . . . Machines Disabled . | . . . . . . . . . . . . . Actions | -11 -10 -10 -8 -8 -8 -6 -6 -6 -6 -5 -5 -5 --------- Run | Yrd Mat Sub Mat Sto Rec Fac Low Low Dat Pro Fac Ext Total 9386 | 66 767 285 910 1186 1655 1550 370 592 125 622 1218 40 Wait 1640 | . 75 1 35 197 492 279 10 56 31 146 318 . Move 6634 | 53 615 270 666 734 987 1124 324 476 92 445 816 32 Hop 14 | . . . . . 2 12 . . . . . . Pick Up 134 | 7 20 3 37 23 5 13 1 4 . 7 14 . Fast Attach 22 | . . . 2 6 3 3 . . . . 8 . Attach 81 | 6 4 1 20 6 3 11 9 3 . 3 15 . Detach 42 | . 3 1 9 2 7 12 . 1 1 . 6 . Swap 42 | . 2 2 9 18 6 1 . . . 2 2 . Drop 97 | . 6 1 14 30 23 13 . 1 1 2 6 . Fire 520 | . 40 6 115 164 28 81 26 4 . 17 32 7 Melee . | . . . . . . . . . . . . . Ram 2 | . . . . . . 1 . . . . 1 . Kick . | . . . . . . . . . . . . . Crush 11 | . 2 . 3 6 . . . . . . . . Escape Stasis . | . . . . . . . . . . . . . Rewire 147 | . . . . . 99 . . 47 . . . 1 Trap . | . . . . . . . . . . . . . Miscellaneous . | . . . . . . . . . . . . . Route ------- -11/Scrapyard -10/Materials (discovered 6 exits: *Mat x3 / *Min x2 / *Sub) -10/Subcaves -8/Materials (discovered 5 exits: *Fac x3 / *Sto x2) -8/Storage (discovered 2 exits: *Fac / *Rec) -8/Recycling -6/Factory (discovered 3 exits: *Fac x2 / *Low) -6/Lower Caves -6/Lower Caves (discovered 2 exits: *Fac / *Dat) -6/Data Miner -5/Proximity Caves -5/Factory -5/Extension (discovered 1 exit: Cet) History --------- Turn | Location | Event 8 | -11/Scrapyard | Discovered new exit (range 16) 86 | -11/Scrapyard | Entered Materials 239 | -10/Materials | Discovered new exit (range 14) 301 | -10/Materials | Build established: Mutant 420 | -10/Materials | Discovered new exit (range 8) 783 | -10/Materials | Identified exit to Mines 844 | -10/Materials | Learned location of 1 exit from Recycling 897 | -10/Materials | Learned 4 Subcaves zone layouts 938 | -10/Materials | Learned location of Storage (-8) 965 | -10/Materials | Discovered new exit (range 15) 968 | -10/Materials | Identified exit to Subcaves 968 | -10/Materials | Identified exit to Materials 968 | -10/Materials | Learned location of 1 exit from Materials 987 | -10/Materials | Learned 4 Recycling zone layouts 995 | -10/Materials | Learned location of 2 exits from Mines 1041 | -10/Materials | Learned Storage trap positions 1080 | -10/Materials | Learned Storage security intel 1292 | -10/Materials | Entered Subcaves 1292 | -10/Subcaves | Accompanied by 1 ally 1401 | -10/Subcaves | Discovered new exit (range 10) 1542 | -10/Subcaves | Visited 4L-MR0's lab 1559 | -10/Subcaves | Found Powered Cannon 1565 | -10/Subcaves | Found Prototype Device 1757 | -10/Subcaves | A swath of the cavern ceiling suddenly collapsed 1929 | -10/Subcaves | Entered Materials 1929 | -8/Materials | Accompanied by 1 ally 1929 | -8/Materials | Evolved 4 slots: Propulsion x2, Utility x2 1929 | -8/Materials | Identified Sfc. Transmogrifier 1930 | -8/Materials | Identified exit to Factory 2206 | -8/Materials | Lost 4 parts (1p2n1w) 2323 | -8/Materials | Identified exit to Storage 2636 | -8/Materials | Repaired Heat Sink 3109 | -8/Materials | Discovered exit to Factory (range 10) 3187 | -8/Materials | Learned location of 1 exit from Recycling 3216 | -8/Materials | Lost 3 parts (2n1u) 3268 | -8/Materials | Learned 4 Recycling zone layouts 3397 | -8/Materials | Learned location of 1 exit from Recycling 3446 | -8/Materials | Learned Storage security intel 3485 | -8/Materials | Learned location of 1 exit from Lower Caves 3535 | -8/Materials | Build established: Scavenger-Mutant 3592 | -8/Materials | Learned 2 Lower Caves zone layouts 3829 | -8/Materials | Entered Storage 3830 | -8/Storage | Loaded intel: 14 trap records 4714 | -8/Storage | Lost 3 parts (1n1u1w) 4874 | -8/Storage | Garrison activated, responded to threat 4899 | -8/Storage | Core integrity fell below 50% 5673 | -8/Storage | Identified exit to Recycling 5731 | -8/Storage | Learned location of Lower Caves (-6) 5815 | -8/Storage | Learned location of Zion (-7) 5844 | -8/Storage | Learned Factory stockpile data 5862 | -8/Storage | Build established: Mutant 5896 | -8/Storage | Learned 4 Factory zone layouts 5904 | -8/Storage | Met a pair of Derelict thieves 5934 | -8/Storage | Used back door to open Recycling access 5937 | -8/Storage | Learned location of 1 exit from Recycling 5942 | -8/Storage | Entered Recycling 5942 | -8/Recycling | Accompanied by 2 allies 5943 | -8/Recycling | Identified exit to Factory 6782 | -8/Recycling | Learned Factory non-interactive machine intel 6831 | -8/Recycling | Learned Factory emergency access door positions 6872 | -8/Recycling | Learned 4 Lower Caves zone layouts 6882 | -8/Recycling | Build established: Commander-Mutant 6902 | -8/Recycling | Learned Storage security intel 6923 | -8/Recycling | Learned location of 1 exit from Storage 6954 | -8/Recycling | Learned Storage trap positions 6984 | -8/Recycling | Learned location of 1 exit from Extension 7109 | -8/Recycling | Entered Scraplab 7150 | -8/Recycling | Found Prototype Device 7150 | -8/Recycling | Identified Scrap Engine 7583 | -8/Recycling | Build established: Commander-Construct 7824 | -8/Recycling | Entered Factory 7824 | -6/Factory | Accompanied by 10 allies 7824 | -6/Factory | Evolved 4 slots: Utility x3, Weapon x1 7825 | -6/Factory | Identified exit to Factory 7825 | -6/Factory | Identified exit to Lower Caves 7829 | -6/Factory | Loaded intel: 288 non-interactive machine locations 8020 | -6/Factory | Lost 3 allies 8940 | -6/Factory | Cargo convoy interrupted 8975 | -6/Factory | Build established: Construct 8992 | -6/Factory | Discovered exit to Factory (range 16) 9415 | -6/Factory | Garrison activated, responded to threat 9572 | -6/Factory | Entered Lower Caves 9573 | -6/Lower Caves | Identified exit to Lower Caves 9603 | -6/Lower Caves | Lost 7 parts (4n1u2w) 9782 | -6/Lower Caves | Core integrity fell below 50% 9821 | -6/Lower Caves | Lost 4 parts (1p1u2w) 9852 | -6/Lower Caves | Build established: Mutant 9953 | -6/Lower Caves | Spotted B-75 Beast 10425 | -6/Lower Caves | Entered another Lower Caves area 10592 | -6/Lower Caves | Encountered a Warlord checkpoint 10593 | -6/Lower Caves | Discovered exit to Factory (range 9) 11181 | -6/Lower Caves | Attacked by a delusional Derelict stockpiling Unaware 11537 | -6/Lower Caves | Attracted the attention of an 0b10 checkpoint 11584 | -6/Lower Caves | Identified exit to Data Miner 11585 | -6/Lower Caves | Build established: Commander-Skirmisher 11690 | -6/Lower Caves | Entered Data Miner 11690 | -6/Data Miner | Accompanied by 4 allies 11690 | -6/Data Miner | Discovered new exit (range 6) 11736 | -6/Data Miner | Met Data Miner 11782 | -6/Data Miner | Learned location of Section 7 (-3) 11782 | -6/Data Miner | Acquired the access code to Warlord's prototype stash 11825 | -6/Data Miner | Received God Mode back door access code from Data Miner 11931 | -6/Data Miner | Identified exit to Proximity Caves 11933 | -6/Data Miner | Entered Proximity Caves 11933 | -5/Proximity Caves | Accompanied by 4 allies 11945 | -5/Proximity Caves | Attracted the attention of an 0b10 checkpoint 12403 | -5/Proximity Caves | Found Alien Artifact 12629 | -5/Proximity Caves | Discovered exit to Factory (range 15) 12911 | -5/Proximity Caves | Lost 3 allies 13004 | -5/Proximity Caves | Entered Factory 13004 | -5/Factory | Evolved 2 slots: Power x1, Utility x1 13220 | -5/Factory | Build established: Scavenger-Skirmisher 13653 | -5/Factory | System corruption reached 10% 13705 | -5/Factory | Lost 13 parts (2p4n5u2w) 13745 | -5/Factory | Core integrity fell below 50% 13758 | -5/Factory | Lost 3 parts (3u) 13777 | -5/Factory | Core integrity fell below 20% 13890 | -5/Factory | Watched by a mysterious "MATRIX" hacker 14030 | -5/Factory | Discovered new exit (range 16) 14042 | -5/Factory | Identified exit to Extension 14042 | -5/Factory | Entered Extension 14042 | -5/Extension | Accompanied by 1 ally 14043 | -5/Extension | Identified exit to Cetus 14074 | -5/Extension | Destroyed by G-50 Soldier with Heavy Laser Last Messages --------------- O-24 Administrator locks terminal. XNW H |OLGAA6YDSS|GRNZKNC6T Critical hit (Burn: +37). Slug penetrates Terminal. Terminal disabled. EXIT=FOUND System corrupted: Matter fused (-5). ALERT: Security rotation in progress. EXIT=IDENTIFIED: EXTENSION LOCATION=EXTENSION GOAL=ESCAPE Loading 1 Extension exit... SXY=HSE1YYW2WV/DVRBQKCLP=A/IMT9 Attempting to rewire CT-FMG(g). CT-FMG(g) rewired. G-50 Soldier springs to life. CT-FMG(g) destroyed. Carbon-fiber Leg melted. G-50 Soldier destroyed. System corrupted: Matter fused (-9). Map ----- +----------------------------------------------------+ | | | | | | | | | | | | | | | ???????????????????????????????????????????? | | ???????????????????????????????????????????? | | ???????????????????????????????????????????? | | ?????????? ????????????????????????????????? | | ????????? ????????????????????????????????? | | ????????? ????????????????????????????????? | | ????????? ????????????????????????????????? | | ????????? ????????????????????????????????? | | ????????? #????????????????????????????????? | | ????????? #????????????????????????????????? | | ????????? #????????????????????????????????? | | ????????# #????????????????????????????????? | | ?????#### #????????????????????????????????? | | ?????# #????#########???????????????????? | | ?????# #?????; #???????????????????? | | ?????# w#?????# g g #???????????????????? | | ?????# #?????# //h #???????????????????? | | ?????# #?????# /!%* #???????????????????? | | ?????# ####### %@! #???????????????????? | | ?????# /o #???????????????????? | | ?????# #################???????????????????? | | ?????# #???????????????????????????????????? | | ?????# #???????????????????????????????????? | | ?????# #???????????????????????????????????? | | ?????# #???????????????????????????????????? | | ?????# #???????????????????????????????????? | | ?????# #???????????????????????????????????? | | ?????# #???????????????????????????????????? | | ?????# #???????????????????????????????????? | | ?????# #???????????????????????????????????? | | ?????# #???????????????????????????????????? | | ?????# #???????????????????????????????????? | | ?????# #???????????????????????????????????? | | ?????# #???????????????????????????????????? | | ?##### #####???????????????????????????????? | | ?# "" "" #???????????????????????????????? | | ?# " " ##########??????????????????????? | | ?# ?????????????????????? | | ?# ?????????????????????? | | ?# ?????????????????????? | | ?# ?????????????????????? | | ?# ?????????????????????? | | ?# ##########??????????????????????? | +----------------------------------------------------+ Best States ------------- Heat Dissipation 75 Energy Generation 24 Energy Capacity 500 Matter Stores 300 Matter Capacity 300 Sight Range 16 Robot Scan Range 16 Terrain Scan Density 10 Base Temperature (-) 100 Armor Coverage 225 Resistance: KI 20 Resistance: EM 15 Evasion (%) 61 Targeting Accuracy 6 Recoil Reduction 4 Salvage Targeting 1 Offensive Hacking 32 Defensive Hacking 12 Item Schematics ----------------- Lrg. Storage Unit | -10/Materials | Hacked Hcp. Storage Unit | -10/Materials | Hacked Hacking Suite | -8/Materials | Hacked System Shield | -8/Recycling | Hacked Combat Drone Bay | -6/Data Miner | Free Lgt. Regenerative Plating | -6/Data Miner | Free Cld. Gravmag System | -6/Data Miner | Free Adv. EM Disruption Field | -6/Data Miner | Free Neutron Cannon | -6/Data Miner | Free Imp. Gyrokinetic Inverter | -6/Data Miner | Free Lrn. Sensor Array | -6/Data Miner | Free Phase Gun | -6/Data Miner | Free Adv. Shield Generator | -6/Data Miner | Free Imp. Heavy Treads | -6/Data Miner | Free Lrn. Terrain Scanner | -6/Data Miner | Free Lgt. Particle Reactor | -6/Data Miner | Free Cmb. Antigrav System | -6/Data Miner | Free Robot Schematics ------------------ L-41 Fighter | -6/Data Miner | Free B-60 Warrior | -6/Data Miner | Free Y-54 Guardian | -6/Data Miner | Free H-66 Slayer | -6/Data Miner | Free G-50 Soldier | -6/Data Miner | Free Fabricated ------------ Nothing Repaired ---------- Heat Sink | 13% | -8/Materials Studied --------- Imp. Ion Engine | -8/Materials | Hacked Lgt. Treads | -8/Materials | Hacked Autogun | -8/Materials | Hacked Lgt. Nuclear Core | -8/Materials | Hacked Lgt. Angular Momentum Engine | -6/Factory | Hacked Pulse Rifle | -6/Factory | Hacked Alien Tech Used ----------------- None Achievements -------------- None Challenges ------------ None Game ------ Seed ScrapWarlordSpiker Manual? 0 Play Time 01:46:09 Cumulative 59.7 hours Start 2026.07.22 @ 14:16:12 End 2026.07.22 @ 16:08:17 Sessions 1 Manual Loads 0 Difficulty Rogue Special Mode None Game No. 42 Rogue 41 Adventurer 1 Explorer 0 Win Type - Total 3 Types 2/0/0/1/0/0/0/0/0/0 Lore% 38 Gallery% 42 Achievement% 45 Wizard Run 0 Options --------- Layout 1 ASCII 0 Keyboard 0 Movement Numpad Keybinds 0 Fullscreen 1 Font 32/SmallcapsGlow Map View 50x35 Zoom Use 0% Tactical HUD 0 Map Filters NONE Filters NONE Steam 1 RUN: 24937cd2-a1ef-41ce-9ed0-32efa8d13303